bitfinex/quotes_BTCUSD_20250308
["timestamp","ask_amount","ask_price","bid_price","bid_amount"]
[1741396032457,0.241648,86903.0,86902.0,0.11256]
[1741396032821,0.011507,86903.0,86902.0,0.11256]
[1741396033619,0.011506,86907.0,86902.0,0.11256]
[1741396034289,0.011506,86906.0,86902.0,0.11256]
[1741396035101,0.011506,86907.0,86902.0,0.11256]
[1741396035924,0.011506,86905.0,86902.0,0.11256]
[1741396036065,0.011506,86907.0,86902.0,0.11256]
[1741396036471,0.0001698,86909.0,86902.0,0.11256]
[1741396036841,0.0001698,86909.0,86903.0,0.241646]
[1741396037626,0.00893922,86908.0,86903.0,0.241646]
[1741396038030,0.00793648,86908.0,86903.0,0.241646]
[1741396038603,0.00793648,86908.0,86904.0,0.241642]
[1741396039505,0.00793648,86908.0,86905.0,0.011506]
[1741396039901,0.00793648,86908.0,86906.0,0.241639]
[1741396040180,0.0001698,86909.0,86908.0,0.320434]
[1741396040306,0.0001698,86909.0,86908.0,0.367834]
[1741396043195,0.0001698,86909.0,86908.0,0.370834]
[1741396046347,0.0116758,86909.0,86908.0,0.24172]
[1741396046502,0.0116758,86909.0,86908.0,0.11552]
[1741396046705,0.0197337,86909.0,86908.0,0.003]
[1741396046909,0.0082277,86909.0,86908.0,0.014506]
[1741396047113,0.0001698,86909.0,86908.0,0.003]
[1741396047513,0.00847584,86909.0,86907.0,0.11252]
[1741396047927,0.00847584,86909.0,86908.0,0.001]
[1741396048951,0.00847584,86909.0,86907.0,0.11252]
[1741396049534,0.00847584,86909.0,86908.0,0.011506]
[1741396049786,0.00818817,86909.0,86908.0,0.011506]
[1741396050173,0.03056787,86918.0,86911.0,0.011506]
[1741396050370,0.01906287,86918.0,86913.0,0.310415]
[1741396050569,0.00830829,86917.0,86913.0,0.310415]
[1741396051146,0.00830829,86917.0,86913.0,0.32192]
[1741396051494,0.230095,86921.0,86913.0,0.32192]
[1741396051653,0.011505,86917.0,86913.0,0.0803]
[1741396052019,0.011505,86914.0,86913.0,0.0753]
[1741396052378,0.00830008,86914.0,86913.0,0.0753]
[1741396052578,0.00830008,86914.0,86913.0,0.31692]
[1741396052802,0.11505901,86925.0,86918.0,0.2301]
[1741396053001,0.11505901,86925.0,86918.0,0.34262]
[1741396053201,0.0198287,86923.0,86918.0,0.11252]
[1741396053407,0.011504,86921.0,86918.0,0.11252]
[1741396053650,0.01982049,86920.0,86918.0,0.11252]
[1741396054006,0.011504,86919.0,86918.0,0.11252]
[1741396054316,0.01981776,86919.0,86918.0,0.11252]
[1741396056445,0.00831376,86919.0,86918.0,0.11252]
[1741396056650,0.011504,86923.0,86918.0,0.11252]
[1741396056830,0.00830999,86919.0,86918.0,0.11252]
[1741396057034,0.011504,86923.0,86918.0,0.11252]
[1741396057294,0.00830999,86919.0,86918.0,0.11252]
[1741396057487,0.011504,86923.0,86918.0,0.11252]
[1741396057690,0.00830999,86919.0,86918.0,0.11252]
[1741396057997,0.011504,86919.0,86918.0,0.11252]
[1741396058217,0.01981399,86919.0,86918.0,0.11252]
[1741396058760,0.00830999,86919.0,86918.0,0.11252]
[1741396059191,0.241603,86919.0,86918.0,0.11252]
[1741396059532,0.24991299,86919.0,86918.0,0.11252]
[1741396059917,0.01981399,86919.0,86918.0,0.11252]
[1741396060135,0.00830999,86919.0,86918.0,0.11252]
[1741396060276,0.00830999,86919.0,86918.0,0.354126]
[1741396060480,0.0001698,86919.0,86918.0,0.354126]
[1741396060701,0.00847979,86919.0,86918.0,0.354126]
[1741396060923,0.0001698,86919.0,86918.0,0.354126]
[1741396061161,0.00847979,86919.0,86918.0,0.11252]
[1741396061461,0.0001698,86919.0,86918.0,0.11252]
[1741396061843,0.00847979,86919.0,86918.0,0.11252]
[1741396062921,0.0001698,86919.0,86918.0,0.11252]
[1741396063430,0.00847979,86919.0,86918.0,0.11252]
[1741396064175,0.01998379,86919.0,86918.0,0.11252]
[1741396065417,0.05597582,86919.0,86918.0,0.11252]
[1741396080745,0.241602,86920.0,86918.0,0.11252]
[1741396080746,0.04428492,86920.0,86918.0,0.11252]
[1741396080880,0.00692414,86919.0,86918.0,0.11252]
[1741396081083,0.10355501,86921.0,86918.0,0.11252]
[1741396081282,0.00692414,86919.0,86918.0,0.11252]
[1741396081505,0.011504,86919.0,86918.0,0.11252]
[1741396081781,0.01842814,86919.0,86918.0,0.11252]
[1741396082976,0.12198315,86919.0,86918.0,0.11252]
[1741396083218,0.011504,86922.0,86918.0,0.11252]
[1741396083421,0.00577467,86919.0,86918.0,0.11252]
[1741396083622,0.011504,86922.0,86918.0,0.11252]
[1741396083805,0.00576547,86919.0,86918.0,0.11252]
[1741396084030,0.011504,86919.0,86918.0,0.11252]
[1741396084180,0.01726947,86919.0,86918.0,0.11252]
[1741396084580,0.01726947,86919.0,86918.0,0.1128596]
[1741396084806,0.00576547,86919.0,86918.0,0.1078596]
[1741396085351,0.0001698,86921.0,86918.0,0.1078596]
[1741396085687,0.0057682,86920.0,86918.0,0.1078596]
[1741396087503,0.011504,86919.0,86918.0,0.1078596]
[1741396087705,0.01726947,86919.0,86918.0,0.1078596]
[1741396088796,0.05333882,86919.0,86918.0,0.1078596]
[1741396090121,0.01726947,86919.0,86918.0,0.0003396]
[1741396090331,0.05333304,86919.0,86918.0,0.0003396]
[1741396097566,0.241645,86904.0,86900.0,0.00040683]
[1741396097849,0.27770857,86904.0,86900.0,0.00040683]
[1741396098081,0.241668,86896.0,86884.0,0.0001699]
[1741396098292,0.27773157,86896.0,86884.0,0.0001699]
[1741396098732,0.241678,86892.0,86884.0,0.0001699]
[1741396099000,0.60604157,86892.0,86884.0,0.0001699]
[1741396099228,0.68045756,86892.0,86884.0,0.0001699]
[1741396099670,1.05855056,86892.0,86891.0,4e-07]
[1741396099895,0.241732,86873.0,86872.0,0.0001698]
[1741396100121,0.60609557,86873.0,86872.0,0.0001698]
[1741396100385,0.61166857,86873.0,86872.0,0.0001698]
[1741396101344,0.61166857,86873.0,86872.0,0.00055853]
[1741396103296,0.575605,86873.0,86872.0,0.00055853]
[1741396103453,0.58429596,86873.0,86872.0,0.00055853]
[1741396104843,0.6068115,86873.0,86872.0,0.00055853]
[1741396105245,0.62486752,86873.0,86872.0,0.00055853]
[1741396106632,0.62486752,86873.0,86857.0,0.21867383]
[1741396106633,0.241762,86862.0,86857.0,0.21867383]
[1741396107011,0.00546567,86861.0,86857.0,0.21879074]
[1741396107517,0.241757,86864.0,86857.0,0.23030374]
[1741396107689,0.0180565,86861.0,86857.0,0.23030374]
[1741396108214,0.00546293,86860.0,86857.0,0.23030374]
[1741396108958,0.011513,86858.0,86857.0,0.00011691]
[1741396109403,0.01698016,86858.0,86857.0,0.00011691]
[1741396110635,0.00546716,86858.0,86857.0,0.00011691]
[1741396111061,0.01700863,86860.0,86857.0,0.00111691]
[1741396111216,0.00545745,86858.0,86857.0,0.00111691]
[1741396111411,0.00545745,86858.0,86857.0,0.00011691]
[1741396111835,0.011512,86860.0,86857.0,0.00011691]
[1741396112459,0.00546019,86859.0,86857.0,0.00011691]
[1741396113463,0.011513,86858.0,86857.0,0.00011691]
[1741396113666,0.01692901,86858.0,86857.0,0.00011691]
[1741396116338,0.00541601,86858.0,86857.0,0.00011691]
[1741396116579,0.24718901,86858.0,86857.0,0.07591691]
[1741396116757,0.24718901,86858.0,86857.0,0.00011691]
[1741396119255,0.26524735,86858.0,86857.0,0.00011691]
[1741396121006,0.26524735,86858.0,86857.0,0.00028681]
[1741396121207,0.26558715,86858.0,86857.0,0.00028681]
[1741396123938,0.2887206,86858.0,86857.0,0.00028681]
[1741396126085,0.241787,86853.0,86852.0,0.06496871]
[1741396126291,0.24717021,86853.0,86852.0,0.06503591]
[1741396126492,0.24717021,86853.0,86852.0,6.72e-05]
[1741396129037,0.26522928,86853.0,86852.0,6.72e-05]
[1741396130308,0.26522928,86853.0,86852.0,1e-08]
[1741396130430,0.30112484,86853.0,86852.0,1e-08]
[1741396131654,0.30112484,86853.0,86851.0,0.00052991]
[1741396131859,0.04740856,86852.0,86851.0,0.00052991]
[1741396132061,0.05278717,86852.0,86851.0,0.00052991]
[1741396140027,0.38108717,86852.0,86851.0,0.00052991]
[1741396141916,0.38108717,86852.0,86851.0,1e-08]
[1741396143261,0.41880466,86852.0,86851.0,1e-08]
[1741396144381,0.241845,86832.0,86831.0,0.0879682]
[1741396144653,0.27774056,86832.0,86831.0,0.00948478]
[1741396144831,0.28302638,86832.0,86831.0,0.00948478]
[1741396146895,0.28302638,86832.0,86831.0,0.08998478]
[1741396147462,0.28302638,86832.0,86831.0,0.07192142]
[1741396148024,0.04118138,86832.0,86831.0,0.07192142]
[1741396148232,0.00528582,86832.0,86831.0,0.12022142]
[1741396148658,0.011516,86835.0,86831.0,0.12022142]
[1741396148862,0.00523868,86832.0,86831.0,0.12022142]
[1741396149061,0.011516,86835.0,86831.0,0.12022142]
[1741396149280,0.00523868,86832.0,86831.0,0.12022142]
[1741396149454,0.011516,86835.0,86831.0,0.12022142]
[1741396149797,0.03593957,86834.0,86831.0,0.12022142]
[1741396150009,0.00524416,86834.0,86831.0,0.12022142]
[1741396151123,0.011516,86833.0,86831.0,0.12022142]
[1741396151335,0.01674834,86833.0,86831.0,0.12022142]
[1741396151552,0.011516,86832.0,86831.0,0.12022142]
[1741396151742,0.0167456,86832.0,86831.0,0.12022142]
[1741396154062,0.0167456,86832.0,86824.0,0.11296]
[1741396154063,0.241848,86831.0,86824.0,0.0805]
[1741396154225,0.27779646,86831.0,86824.0,0.0805]
[1741396154430,0.28306729,86831.0,86824.0,0.0805]
[1741396156514,0.30113113,86831.0,86824.0,0.0805]
[1741396156937,0.30113113,86831.0,86830.0,0.0051699]
[1741396168400,0.30147113,86831.0,86830.0,0.0051699]
[1741396173181,0.011518,86819.0,86814.0,7e-05]
[1741396173428,0.230369,86817.0,86814.0,7e-05]
[1741396173687,0.27783546,86817.0,86814.0,7e-05]
[1741396173940,0.28380189,86817.0,86814.0,7e-05]
[1741396174600,0.03664585,86817.0,86814.0,7e-05]
[1741396174729,0.26701485,86817.0,86814.0,7e-05]
[1741396175758,0.27853285,86817.0,86814.0,7e-05]
[1741396177578,0.3020808,86817.0,86814.0,7e-05]
[1741396177760,0.32014635,86817.0,86814.0,7e-05]
[1741396179451,0.241901,86812.0,86811.0,0.00029961]
[1741396179813,0.27901705,86812.0,86811.0,0.00029961]
[1741396180617,0.60731705,86812.0,86811.0,0.00029961]
[1741396181656,0.241946,86796.0,86795.0,0.0882]
[1741396181856,0.241946,86796.0,86795.0,0.08858593]
[1741396182097,0.24834764,86796.0,86795.0,0.08858593]
[1741396182558,0.00640164,86796.0,86795.0,0.08858593]
[1741396182773,0.011521,86797.0,86795.0,0.08858593]
[1741396182996,0.00527594,86796.0,86795.0,0.08858593]
[1741396183279,0.01679694,86796.0,86795.0,0.08858593]
[1741396183486,0.02173126,86796.0,86795.0,0.08858593]
[1741396184988,0.03325226,86796.0,86795.0,0.08858593]
[1741396185404,0.05132228,86796.0,86795.0,0.08858593]
[1741396186612,0.03980128,86796.0,86795.0,0.08858593]
[1741396186791,0.03980128,86796.0,86795.0,0.02078097]
[1741396189784,0.03980128,86796.0,86795.0,0.25120897]
[1741396189998,0.03980128,86796.0,86795.0,0.31112997]
[1741396190219,0.10348509,86811.0,86795.0,0.29960897]
[1741396190467,0.11973496,86811.0,86810.0,0.140819]
[1741396190689,0.11973496,86811.0,86810.0,0.253619]
[1741396191132,0.13125396,86811.0,86810.0,0.2421]
[1741396192473,0.11973496,86811.0,86810.0,0.2421]
[1741396192900,0.01624987,86811.0,86810.0,0.2421]
[1741396193149,0.12359208,86815.0,86810.0,0.2421]
[1741396193376,0.011518,86814.0,86810.0,0.2421]
[1741396193828,0.011519,86813.0,86810.0,0.2421]
[1741396194293,0.011519,86812.0,86810.0,0.2421]
[1741396195566,0.02795074,86812.0,86810.0,0.2421]
[1741396196427,0.01643174,86812.0,86810.0,0.2421]
[1741396196906,0.011518,86814.0,86810.0,0.2421]
[1741396197142,0.01652041,86812.0,86810.0,0.2421]
[1741396197340,0.11207408,86815.0,86810.0,0.2421]
[1741396197567,0.00858899,86815.0,86814.0,0.011518]
[1741396197690,0.011518,86819.0,86813.0,0.230378]
[1741396197886,0.02777564,86819.0,86813.0,0.230378]
[1741396198351,0.02958327,86818.0,86812.0,0.011519]
[1741396198582,0.02958327,86818.0,86812.0,0.241899]
[1741396198790,0.04776291,86820.0,86812.0,0.241899]
[1741396199221,0.01806529,86819.0,86812.0,0.241899]
[1741396199635,0.01806529,86819.0,86818.0,0.077]
[1741396199840,0.03386101,86819.0,86818.0,0.077]
[1741396200270,0.03386101,86819.0,86818.0,0.088518]
[1741396200601,0.03386101,86819.0,86818.0,0.077]
[1741396201224,0.27574301,86819.0,86818.0,0.077]
[1741396201501,0.27574301,86819.0,86818.0,0.072]
[1741396201766,0.241896,86814.0,86810.0,0.1612]
[1741396201977,0.241902,86812.0,86810.0,0.1612]
[1741396202179,0.01152,86805.0,86799.0,0.19328]
[1741396202382,0.01152,86803.0,86800.0,0.11264]
[1741396202586,0.01152,86801.0,86799.0,0.19328]
[1741396202791,0.01152,86800.0,86799.0,0.19328]
[1741396203001,0.01152,86800.0,86799.0,0.30592]
[1741396203419,0.01152,86800.0,86799.0,0.19328]
[1741396203627,0.01152,86800.0,86799.0,0.30592]
[1741396204456,0.011521,86796.0,86795.0,0.00055583]
[1741396204634,0.241946,86796.0,86795.0,0.11319583]
[1741396206125,0.26001471,86796.0,86795.0,0.11319583]
[1741396206326,0.26001471,86796.0,86795.0,0.00055583]
[1741396208928,0.29596028,86796.0,86795.0,0.00055583]
[1741396209360,0.26001471,86796.0,86795.0,0.00055583]
[1741396209559,0.29594708,86796.0,86795.0,0.00055583]
[1741396212228,0.26001471,86796.0,86795.0,0.00055583]
[1741396212834,0.241946,86796.0,86795.0,0.00055583]
[1741396213234,0.27785973,86796.0,86795.0,0.00055583]
[1741396213593,0.241946,86796.0,86795.0,0.00055583]
[1741396213778,0.27785745,86796.0,86795.0,0.00055583]
[1741396215801,0.241946,86796.0,86795.0,0.00055583]
[1741396215959,0.26001677,86796.0,86795.0,0.00055583]
[1741396217180,0.2958874,86796.0,86795.0,0.00055583]
[1741396217382,0.26001677,86796.0,86795.0,0.00055583]
[1741396217812,0.29588834,86796.0,86795.0,0.00055583]
[1741396218624,0.26001677,86796.0,86795.0,0.00055583]
[1741396224032,0.28154122,86796.0,86795.0,0.00055583]
[1741396225899,0.28154122,86796.0,86795.0,0.08065583]
[1741396227070,0.28154122,86796.0,86795.0,0.00055583]
[1741396228543,0.03959522,86796.0,86795.0,0.00055583]
[1741396228761,0.05111622,86796.0,86795.0,0.05005583]
[1741396229827,0.05111622,86796.0,86795.0,0.16269583]
[1741396229828,0.03959522,86796.0,86795.0,0.16269583]
[1741396230195,0.05111622,86796.0,86795.0,0.16269583]
[1741396231617,0.06118692,86796.0,86795.0,0.16269583]
[1741396234596,0.09712908,86796.0,86795.0,0.15769583]
[1741396234817,0.06118692,86796.0,86795.0,0.15769583]
[1741396236889,0.09715023,86796.0,86795.0,0.15769583]
[1741396241204,0.09715023,86796.0,86795.0,0.15786563]
[1741396242163,0.08562923,86796.0,86795.0,0.15786563]
[1741396242409,0.09715023,86796.0,86795.0,0.15786563]
[1741396244490,0.07562578,86796.0,86795.0,0.15786563]
[1741396244674,0.07562578,86796.0,86795.0,0.15286563]
[1741396247175,0.30605078,86796.0,86795.0,0.15286563]
[1741396249582,0.30605078,86796.0,86795.0,0.0001698]
[1741396253088,0.30639058,86796.0,86795.0,0.0001698]
[1741396257753,0.241956,86792.0,86791.0,0.0004]
[1741396257959,0.011524,86772.0,86771.0,0.0003021]
[1741396258157,0.04748731,86772.0,86771.0,0.0003021]
[1741396258472,0.05783917,86772.0,86771.0,0.0003021]
[1741396259460,0.05783917,86772.0,86748.0,0.0005]
[1741396259461,0.011527,86752.0,86748.0,0.0005]
[1741396259670,0.27803231,86752.0,86748.0,0.0005]
[1741396259879,0.0232582,86752.0,86748.0,0.0005]
[1741396260708,0.05911159,86752.0,86748.0,0.0005]
[1741396260922,0.02364644,86752.0,86748.0,0.0005]
[1741396261130,0.25418844,86752.0,86748.0,0.0005]
[1741396261927,0.29001439,86752.0,86748.0,0.0005]
[1741396262737,0.25418844,86752.0,86748.0,0.0005]
[1741396263237,0.242077,86749.0,86748.0,0.0005]
[1741396263435,0.68495882,86749.0,86748.0,0.0005]
[1741396263617,0.242088,86745.0,86731.0,0.0005698]
[1741396263814,0.27786982,86745.0,86731.0,0.0005698]
[1741396264019,0.242124,86732.0,86731.0,0.0005698]
[1741396264438,0.25505725,86732.0,86731.0,0.0005698]
[1741396266097,0.01169424,86732.0,86731.0,0.0005698]
[1741396266307,0.2403402,86732.0,86731.0,0.0005698]
[1741396266535,0.2518692,86732.0,86731.0,0.0005698]
[1741396274290,0.2518692,86732.0,86701.0,0.0761]
[1741396274291,0.011532,86709.0,86701.0,0.0761]
[1741396274518,0.242219,86698.0,86691.0,0.0004]
[1741396274730,0.011535,86691.0,86690.0,0.005]
[1741396275051,0.02101085,86691.0,86690.0,0.005]
[1741396275843,0.02139861,86691.0,86690.0,0.005]
[1741396276374,0.04194652,86691.0,86690.0,0.005]
[1741396276755,0.242252,86686.0,86664.0,0.0001699]
[1741396276969,0.011535,86688.0,86677.0,0.011537]
[1741396277185,0.00997926,86686.0,86682.0,0.0821]
[1741396277314,0.011535,86687.0,86682.0,0.0821]
[1741396277522,0.02151157,86686.0,86682.0,0.0821]
[1741396277727,0.00997657,86686.0,86682.0,0.0821]
[1741396277944,0.011535,86686.0,86682.0,0.0821]
[1741396278167,0.00997055,86686.0,86679.0,0.11268]
[1741396278376,0.02150555,86686.0,86679.0,0.11268]
[1741396278574,0.02150555,86686.0,86685.0,0.1128499]
[1741396279045,0.011535,86686.0,86685.0,0.1128499]
[1741396279245,0.02152508,86686.0,86685.0,0.1128499]
[1741396280117,0.00999008,86686.0,86685.0,0.1128499]
[1741396280343,0.011535,86689.0,86685.0,0.1128499]
[1741396280575,0.00997126,86686.0,86685.0,0.1128499]
[1741396280781,0.011535,86688.0,86685.0,0.1128499]
[1741396280989,0.00997126,86686.0,86685.0,0.1128499]
[1741396281187,0.011535,86688.0,86685.0,0.1128499]
[1741396281399,0.00997126,86686.0,86685.0,0.1128499]
[1741396281606,0.011535,86686.0,86685.0,0.1128499]
[1741396281829,0.02150626,86686.0,86685.0,0.0001699]
[1741396287844,0.00997126,86686.0,86685.0,0.0001699]
[1741396288281,0.011535,86688.0,86685.0,0.0001699]
[1741396288421,0.00996589,86686.0,86685.0,0.0001699]
[1741396288624,0.00886777,86689.0,86687.0,0.1239]
[1741396288835,0.0003402,86690.0,86688.0,0.11272]
[1741396289230,0.0118752,86690.0,86688.0,0.11272]
[1741396289643,0.0003402,86690.0,86688.0,0.11272]
[1741396290479,0.0003402,86690.0,86688.0,0.124255]
[1741396290686,0.0003402,86690.0,86688.0,0.11272]
[1741396291517,0.0118752,86690.0,86688.0,0.11272]
[1741396292871,0.0003402,86690.0,86688.0,0.11272]
[1741396293076,0.0003402,86690.0,86689.0,0.011535]
[1741396293547,0.0003402,86690.0,86688.0,0.11272]
[1741396293971,0.0118752,86690.0,86688.0,0.11272]
[1741396294173,0.2425842,86690.0,86689.0,0.11272]
[1741396294374,0.0118752,86690.0,86689.0,0.11272]
[1741396295336,0.0222091,86690.0,86689.0,0.11272]
[1741396296530,0.242252,86686.0,86685.0,0.0001699]
[1741396296729,0.0218567,86686.0,86685.0,0.1128899]
[1741396298116,0.2525737,86686.0,86685.0,0.1128899]
[1741396298599,0.0218567,86686.0,86685.0,0.1128899]
[1741396300084,0.0218567,86686.0,86685.0,0.0001699]
[1741396300490,0.05761584,86686.0,86685.0,0.0001699]
[1741396301469,0.0218567,86686.0,86685.0,0.0001699]
[1741396304178,0.05762394,86686.0,86685.0,0.0001699]
[1741396306971,0.05762394,86686.0,86674.0,0.11272]
[1741396307171,0.242292,86672.0,86671.0,0.0004]
[1741396307431,0.27805924,86672.0,86671.0,0.0004]
[1741396307634,0.28838586,86672.0,86671.0,0.0004]
[1741396317802,0.28838586,86672.0,86664.0,0.0001699]
[1741396317803,0.242311,86665.0,86664.0,0.0001699]
[1741396318021,0.27807824,86665.0,86664.0,0.0001699]
[1741396318231,0.28887599,86665.0,86664.0,0.0001699]
[1741396319724,0.242331,86658.0,86657.0,0.0130832]
[1741396319928,0.242348,86652.0,86651.0,0.0004]
[1741396320129,0.27811524,86652.0,86651.0,0.0004]
[1741396320473,0.28885898,86652.0,86651.0,0.0004]
[1741396321027,0.2892465,86652.0,86651.0,0.0004]
[1741396321539,0.242367,86645.0,86644.0,0.00017]
[1741396321781,0.25309197,86645.0,86644.0,0.00017]
[1741396323055,0.2888175,86645.0,86644.0,0.00017]
[1741396323261,0.0464505,86645.0,86631.0,0.0004]
[1741396323466,0.242404,86632.0,86631.0,0.0004]
[1741396323952,0.29904724,86632.0,86631.0,0.0004]
[1741396324394,0.31709338,86632.0,86631.0,0.0004]
[1741396324548,0.27109338,86632.0,86631.0,0.0004]
[1741396324750,0.02868938,86632.0,86631.0,0.0004]
[1741396324957,0.04023238,86632.0,86631.0,0.0004]
[1741396330276,0.04023238,86632.0,86611.0,0.0004]
[1741396330277,0.011545,86612.0,86611.0,0.0004]
[1741396330478,0.011545,86612.0,86591.0,0.0004]
[1741396330479,0.242516,86592.0,86591.0,0.0004]
[1741396330802,0.25417391,86592.0,86591.0,0.0004]
[1741396331651,0.242546,86581.0,86577.0,0.0001701]
[1741396332058,0.242555,86578.0,86577.0,0.0001701]
[1741396332258,0.011551,86571.0,86570.0,0.00333451]
[1741396332465,0.452651,86571.0,86570.0,5.1e-07]
[1741396332665,0.339851,86571.0,86570.0,5.1e-07]
[1741396333062,0.0124646,86571.0,86570.0,5.1e-07]
[1741396333301,0.0124646,86571.0,86570.0,0.11280051]
[1741396333561,0.01155,86574.0,86570.0,0.11280051]
[1741396333798,0.242568,86573.0,86570.0,0.11280051]
[1741396334032,0.011551,86572.0,86570.0,0.11280051]
[1741396334412,0.25286257,86571.0,86570.0,0.11280051]
[1741396335709,0.25286257,86571.0,86570.0,5.1e-07]
[1741396336789,0.01028757,86571.0,86570.0,5.1e-07]
[1741396337042,0.01028757,86571.0,86570.0,0.01155151]
[1741396337284,0.008815,86575.0,86574.0,0.242566]
[1741396337527,0.01155,86580.0,86574.0,0.355366]
[1741396337756,0.011549,86587.0,86576.0,0.01155]
[1741396337973,0.011548,86595.0,86588.0,0.011548]
[1741396338193,0.011547,86602.0,86589.0,0.355324]
[1741396338410,0.011547,86596.0,86589.0,0.355324]
[1741396338671,0.011547,86600.0,86591.0,0.011548]
[1741396339080,0.10276424,86601.0,86591.0,0.011548]
[1741396339309,0.10276424,86601.0,86591.0,0.01270271]
[1741396341887,0.10276424,86601.0,86591.0,0.01370271]
[1741396343052,0.011546,86608.0,86591.0,0.01370271]
[1741396343672,0.011547,86602.0,86591.0,0.01470271]
[1741396343913,0.011547,86598.0,86591.0,0.11495471]
[1741396344079,0.011548,86595.0,86591.0,0.11495471]
[1741396344275,0.011547,86598.0,86591.0,0.11595471]
[1741396344502,0.00751752,86592.0,86591.0,0.11495471]
[1741396344707,0.00038705,86592.0,86591.0,0.12550271]
[1741396344878,0.230936,86604.0,86591.0,0.12550271]
[1741396345101,0.011547,86601.0,86591.0,0.11507026]
[1741396345250,0.011547,86599.0,86591.0,0.11507026]
[1741396345680,0.00584703,86598.0,86591.0,0.11507026]
[1741396346410,0.011547,86601.0,86591.0,0.11407026]
[1741396346558,0.00584435,86597.0,86591.0,0.11407026]
[1741396346768,0.011547,86601.0,86591.0,0.35658826]
[1741396346968,0.0058524,86600.0,86591.0,0.35643355]
[1741396347376,0.0058524,86600.0,86591.0,0.35543355]
[1741396348817,0.011548,86595.0,86591.0,0.00011555]
[1741396349017,0.011548,86592.0,86591.0,0.00011555]
[1741396349220,0.011548,86592.0,86591.0,0.11299555]
[1741396349426,0.01726184,86592.0,86591.0,0.11299555]
[1741396349628,0.00571384,86592.0,86591.0,0.11299555]
[1741396350011,0.01726184,86592.0,86591.0,0.00011555]
[1741396353884,0.00571384,86592.0,86591.0,0.00011555]
[1741396354067,0.00571384,86592.0,86591.0,0.35543355]
[1741396354497,0.0003398,86593.0,86591.0,0.35543355]
[1741396354720,0.0003398,86593.0,86592.0,0.01270271]
[1741396355225,0.0003398,86593.0,86592.0,0.08850271]
[1741396356637,0.0003398,86593.0,86592.0,0.13540271]
[1741396357417,0.0003398,86593.0,86592.0,0.45710271]
[1741396357604,0.01804614,86632.0,86592.0,0.45710271]
[1741396357605,0.02958914,86632.0,86622.0,0.230886]
[1741396357811,0.02958914,86632.0,86623.0,0.1128]
[1741396357812,0.011543,86629.0,86623.0,0.1128]
[1741396358024,0.242426,86624.0,86623.0,0.1128]
[1741396358600,0.242426,86624.0,86623.0,0.1118]
[1741396358823,0.242426,86624.0,86623.0,0.11191555]
[1741396360936,0.011543,86628.0,86623.0,0.11191555]
[1741396361175,0.01804614,86632.0,86624.0,0.011544]
[1741396361404,0.230845,86638.0,86625.0,0.23088]
[1741396361646,0.011542,86633.0,86625.0,0.242424]
[1741396361854,0.0356468,86637.0,86630.0,0.011543]
[1741396362083,0.011541,86642.0,86626.0,0.242418]
[1741396362084,0.011542,86636.0,86628.0,0.011543]
[1741396362418,0.011542,86636.0,86629.0,0.011543]
[1741396362626,0.011543,86628.0,86617.0,0.011545]
[1741396362797,0.0003398,86624.0,86619.0,0.00115433]
[1741396363388,0.0003398,86624.0,86623.0,0.12345955]
[1741396363608,0.0003398,86624.0,86623.0,0.12461386]
[1741396364187,0.0003398,86624.0,86623.0,0.52231386]
[1741396364422,0.0003398,86624.0,86623.0,0.52115955]
[1741396365806,0.0003398,86624.0,86623.0,0.59225955]
[1741396366030,0.10276424,86640.0,86639.0,0.242384]
[1741396366270,0.10276424,86640.0,86639.0,0.631524]
[1741396366747,0.10276424,86640.0,86639.0,0.953224]
[1741396368119,0.0003404,86651.0,86650.0,0.242353]
[1741396368366,0.0003404,86651.0,86650.0,0.355313]
[1741396369435,0.0003404,86651.0,86650.0,0.35542855]
[1741396371308,0.0003404,86651.0,86650.0,0.35742855]
[1741396371608,0.0003404,86651.0,86650.0,0.35942855]
[1741396376081,0.0003404,86651.0,86650.0,0.24646855]
[1741396376342,0.0003404,86651.0,86650.0,0.35934855]
[1741396377038,0.0003404,86651.0,86650.0,0.35734855]
[1741396377314,0.0003404,86651.0,86650.0,0.35534855]
[1741396377551,0.0003404,86651.0,86650.0,0.00011555]
[1741396377797,0.0003404,86651.0,86650.0,0.00111555]
[1741396378028,0.0118804,86651.0,86650.0,0.11315555]
[1741396378252,0.0118804,86651.0,86650.0,0.11515555]
[1741396378468,0.0118804,86651.0,86650.0,0.00211555]
[1741396379587,0.0118804,86651.0,86650.0,0.00011555]
[1741396381528,0.0596804,86651.0,86650.0,0.00011555]
[1741396381737,0.0596804,86651.0,86650.0,5.5e-07]
[1741396381947,0.38369135,86651.0,86650.0,5.5e-07]
[1741396382095,0.09522735,86651.0,86650.0,5.5e-07]
[1741396382303,0.09522735,86651.0,86632.0,0.11332]
[1741396382304,0.011542,86633.0,86632.0,0.11332]
[1741396382510,0.242424,86625.0,86624.0,0.0001698]
[1741396383723,0.24254009,86625.0,86624.0,0.0001698]
[1741396384357,0.24254009,86625.0,86623.0,0.11332]
[1741396384358,0.011544,86624.0,86623.0,0.1133198]
[1741396385531,0.230877,86626.0,86623.0,0.1133198]
[1741396385707,0.23088,86625.0,86623.0,0.1133198]
[1741396387055,0.011544,86624.0,86623.0,0.1133198]
[1741396387260,0.00890266,86627.0,86623.0,0.1133198]
[1741396387460,0.242415,86628.0,86623.0,0.1133198]
[1741396387768,0.011541,86642.0,86625.0,0.011544]
[1741396387985,0.011541,86642.0,86623.0,0.1133198]
[1741396387986,0.011541,86642.0,86633.0,0.011542]
[1741396388196,0.011541,86642.0,86634.0,0.11328]
[1741396388402,0.02012715,86642.0,86634.0,0.11328]
[1741396388972,0.00858615,86642.0,86634.0,0.11443419]
[1741396389168,0.242373,86643.0,86634.0,0.11443419]
[1741396389387,0.011541,86642.0,86634.0,0.11443419]
[1741396389600,0.242378,86641.0,86634.0,0.11443419]
[1741396389751,0.011542,86639.0,86634.0,0.11328]
[1741396391267,0.242378,86641.0,86634.0,0.11328]
[1741396391667,0.011541,86641.0,86634.0,0.11328]
[1741396392099,0.011542,86639.0,86634.0,0.11443416]
[1741396392307,0.011542,86635.0,86634.0,0.11328]
[1741396392517,0.011542,86635.0,86626.0,0.1134]
[1741396392518,0.011543,86628.0,86626.0,0.1134]
[1741396392727,0.011543,86627.0,86626.0,0.1134]
[1741396392941,0.242424,86625.0,86623.0,0.11344]
[1741396393142,0.242424,86625.0,86620.0,0.1134]
[1741396393991,0.242424,86625.0,86602.0,0.14816]
[1741396394193,0.242424,86625.0,86613.0,0.11336]